bitfinex/quotes_SOLUSD_20250726
["timestamp","ask_amount","ask_price","bid_price","bid_amount"]
[1753553955657,1e-08,185.6,185.59,143.72096697]
[1753553956157,1e-08,185.6,185.59,149.10918831]
[1753553956358,0.03,185.64,185.63,16.78468397]
[1753553956543,0.03,185.64,185.63,62.08869306]
[1753553956862,0.03,185.64,185.63,62.73869306]
[1753553957267,0.03,185.64,185.63,62.08869306]
[1753553957475,0.03,185.64,185.63,68.12575334]
[1753553957639,0.03,185.66,185.65,26.0]
[1753553957840,0.03,185.68,185.67,0.28432314]
[1753553958036,0.03,185.68,185.67,44.74530307]
[1753553958861,0.1,185.7,185.68,16.78468397]
[1753553959065,0.1,185.7,185.69,44.44097993]
[1753553959444,0.1,185.7,185.69,49.82629954]
[1753553961150,0.1,185.7,185.69,27.45530665]
[1753553961369,0.1,185.7,185.69,66.85530665]
[1753553963054,0.76,185.7,185.69,5.66964275]
[1753553963260,0.76,185.7,185.69,50.03062268]
[1753553964754,0.76,185.7,185.69,140.03062268]
[1753553965979,0.76,185.7,185.69,95.28530307]
[1753553966169,0.76,185.7,185.69,139.99062268]
[1753553968881,0.1,185.7,185.69,139.99062268]
[1753553969281,0.1,185.7,185.69,139.93062268]
[1753553971168,0.1,185.7,185.69,100.67062268]
[1753553971483,0.1,185.7,185.69,139.89062268]
[1753553972265,0.1,185.7,185.69,157.32530665]
[1753553973094,0.1,185.7,185.69,162.32628658]
[1753553973480,0.1,185.7,185.69,156.67530665]
[1753553974792,0.1,185.7,185.69,157.32530665]
[1753553975873,0.1,185.7,185.69,156.67530665]
[1753553977390,0.8,185.7,185.69,100.38629954]
[1753553977597,0.8,185.7,185.69,139.54629954]
[1753553977796,0.1,185.7,185.69,139.83062268]
[1753553978191,0.1,185.7,185.69,156.61530665]
[1753553979088,0.1,185.7,185.69,95.66964275]
[1753553979278,0.8,185.7,185.69,139.81062268]
[1753553980693,0.8,185.7,185.69,134.80964275]
[1753553980899,0.8,185.7,185.69,139.81062268]
[1753553981194,0.8,185.7,185.69,5.38531961]
[1753553981394,0.8,185.7,185.69,44.52531961]
[1753553981597,0.8,185.7,185.69,44.66748118]
[1753553981992,0.8,185.7,185.69,44.80964275]
[1753553982372,0.8,185.7,185.69,49.81062268]
[1753553982373,0.1,185.7,185.69,49.81062268]
[1753553982578,0.8,185.7,185.69,49.81062268]
[1753553984095,0.8,185.7,185.69,44.80964275]
[1753553984496,0.8,185.7,185.69,44.78964275]
[1753553985324,0.8,185.7,185.69,5.66964275]
[1753553985492,0.8,185.7,185.69,44.76964275]
[1753553986723,0.8,185.7,185.69,49.77062268]
[1753553987727,0.1,185.7,185.69,49.77062268]
[1753553988999,0.8,185.7,185.69,44.76964275]
[1753553989829,0.8,185.7,185.65,95.38641792]
[1753553990124,0.8,185.7,185.66,44.44591087]
[1753553990304,0.8,185.7,185.66,39.06]
[1753553990495,5.80097993,185.7,185.66,44.44612205]
[1753553990699,0.7,185.69,185.66,44.44612205]
[1753553992921,0.7,185.69,185.67,0.14216157]
[1753553993109,0.1,185.7,185.68,39.1]
[1753553993293,0.8,185.7,185.68,39.1]
[1753553993720,0.1,185.7,185.69,5.28530307]
[1753553993930,0.1,185.7,185.69,95.93530307]
[1753553994395,0.1,185.7,185.69,101.32062268]
[1753553996699,0.1,185.7,185.69,144.10530665]
[1753553997094,1e-08,185.7,185.69,149.10628658]
[1753553997500,0.03,185.74,185.73,42.78468397]
[1753553997717,0.03,185.74,185.73,87.08998704]
[1753553998022,0.03,185.74,185.73,87.73998704]
[1753553998726,0.03,185.74,185.73,93.12414684]
[1753554000925,0.1,185.76,185.74,0.28432314]
[1753554001123,0.1,185.76,185.75,61.71998704]
[1753554001640,1e-08,185.76,185.75,62.25834504]
[1753554001812,1e-08,185.76,185.75,183.64192512]
[1753554002010,1e-08,185.76,185.75,183.10356712]
[1753554002527,1e-08,185.78,185.77,43.06900711]
[1753554002830,1e-08,185.78,185.77,177.60828708]
[1753554003029,1e-08,185.78,185.77,177.71998704]
[1753554003609,1e-08,185.78,185.77,138.71998704]
[1753554003805,1e-08,185.78,185.77,177.71998704]
[1753554004010,1e-08,185.78,185.77,183.10298752]
[1753554005211,1e-08,185.78,185.77,182.45298752]
[1753554005612,1e-08,185.78,185.77,183.10298752]
[1753554006524,0.1,185.81,185.78,0.28432314]
[1753554006728,0.1,185.81,185.8,48.06998704]
[1753554007145,0.1,185.81,185.8,87.04998704]
[1753554007620,0.1,185.81,185.8,98.08309829]
[1753554008420,1e-08,185.81,185.8,188.08309829]
[1753554008610,0.69,185.86,185.81,0.28432314]
[1753554008939,0.69,185.86,185.85,5.28530307]
[1753554009245,0.69,185.86,185.85,44.26530307]
[1753554009923,0.69,185.86,185.85,49.64598641]
[1753554011117,0.69,185.86,185.82,95.00097993]
[1753554011314,5.69097993,185.86,185.83,38.98]
[1753554011513,0.69,185.85,185.84,38.98]
[1753554012844,7.30077993,185.85,185.74,5.00097993]
[1753554013048,5.00097993,185.81,185.74,5.00097993]
[1753554013232,0.69,185.8,185.75,70.36358008]
[1753554013622,5.69097993,185.8,185.76,0.28432314]
[1753554013843,0.69,185.79,185.77,38.98]
[1753554015425,5.00097993,185.78,185.77,0.06]
[1753554015725,5.00097993,185.78,185.77,39.04]
[1753554015938,5.69097993,185.78,185.77,39.04]
[1753554016925,0.69,185.78,185.77,39.04]
[1753554017527,5.69097993,185.78,185.77,39.04]
[1753554019353,0.69,185.78,185.77,39.04]
[1753554020423,0.03,185.79,185.77,44.42300048]
[1753554021536,0.72,185.79,185.77,44.42300048]
[1753554021938,0.03,185.79,185.77,44.42300048]
[1753554023654,0.03,185.79,185.77,49.42398041]
[1753554023830,0.03,185.79,185.78,5.00097993]
[1753554024335,0.03,185.79,185.77,134.42300048]
[1753554024541,0.03,185.79,185.77,139.42398041]
[1753554029144,0.03,185.79,185.77,135.07300048]
[1753554029348,0.03,185.79,185.78,5.00097993]
[1753554029560,0.03,185.79,185.78,5.28530307]
[1753554029764,0.03,185.79,185.78,95.93530307]
[1753554030465,0.03,185.79,185.78,95.28530307]
[1753554031860,0.03,185.79,185.78,100.6680138]
[1753554034547,0.03,185.79,185.78,95.66703387]
[1753554034747,0.03,185.79,185.78,100.6680138]
[1753554037873,0.03,185.79,185.78,100.7280138]
[1753554041459,0.71,185.79,185.78,95.72703387]
[1753554043367,0.03,185.79,185.78,95.72703387]
[1753554045677,0.03,185.79,185.78,134.66703387]
[1753554047379,0.03,185.79,185.78,140.3180138]
[1753554047680,0.03,185.79,185.78,139.6680138]
[1753554049171,0.03,185.79,185.78,100.7280138]
[1753554049368,0.03,185.79,185.78,139.6680138]
[1753554050371,0.03,185.79,185.78,134.66703387]
[1753554050685,0.71,185.79,185.78,134.66703387]
[1753554051057,0.71,185.79,185.78,139.6680138]
[1753554051282,0.03,185.79,185.78,139.6680138]
[1753554054159,0.03,185.79,185.78,134.66703387]
[1753554062374,5.72097993,185.79,185.78,0.06]
[1753554062616,6.25846985,185.79,185.78,38.98]
[1753554063293,11.64089086,185.79,185.74,0.06]
[1753554063468,2.3029,185.78,185.75,38.92]
[1753554063670,0.69,185.77,185.75,38.92]
[1753554063892,0.72,185.79,185.76,5.00097993]
[1753554064095,0.72,185.79,185.77,38.92]
[1753554064281,0.03,185.79,185.77,43.92097993]
[1753554065289,0.03,185.79,185.78,5.38271073]
[1753554065473,0.03,185.79,185.78,10.38369066]
[1753554066696,0.03,185.79,185.78,11.10369066]
[1753554066989,0.03,185.79,185.78,11.3880138]
[1753554067194,0.03,185.79,185.78,54.71096884]
[1753554067403,0.03,185.79,185.78,36.6680138]
[1753554067692,0.03,185.79,185.77,38.92]
[1753554067693,0.72,185.79,185.75,95.00097993]
[1753554067874,0.72,185.79,185.76,38.92]
[1753554068188,0.72,185.79,185.76,44.30325161]
[1753554068486,0.69,185.78,185.76,49.30423154]
[1753554069394,0.03,185.79,185.76,49.30423154]
[1753554069600,0.69,185.77,185.76,44.30325161]
[1753554070796,0.69,185.77,185.75,5.38353979]
[1753554070976,0.69,185.77,185.76,38.9]
[1753554073794,0.72,185.79,185.76,44.28322909]
[1753554080112,0.03,185.79,185.76,45.00322909]
[1753554081121,0.03,185.79,185.76,44.28322909]
[1753554081289,0.69,185.78,185.76,44.28322909]
[1753554082290,0.03,185.79,185.76,44.28322909]
[1753554082490,0.72,185.79,185.76,44.28322909]
[1753554083828,0.72,185.79,185.76,44.34322909]
[1753554086997,0.03,185.79,185.76,45.03322909]
[1753554087202,0.03,185.79,185.77,0.69]
[1753554087405,0.03,185.79,185.78,38.88]
[1753554087606,0.03,185.79,185.78,44.16530307]
[1753554087806,0.03,185.79,185.78,44.85530307]
[1753554088997,0.03,185.81,185.8,31.66645446]
[1753554089226,0.03,185.81,185.8,75.52743439]
[1753554089397,0.03,185.81,185.8,76.21743439]
[1753554094826,0.03,185.81,185.8,166.21743439]
[1753554095906,0.03,185.81,185.8,160.52645446]
[1753554096226,0.03,185.81,185.8,165.52743439]
[1753554098231,0.03,185.81,185.8,166.21743439]
[1753554099531,0.03,185.81,185.8,165.52743439]
[1753554099830,0.03,185.81,185.8,166.21743439]
[1753554100150,0.03,185.81,185.8,183.00211836]
[1753554105408,0.03,185.81,185.8,143.45211836]
[1753554105608,0.03,185.81,185.8,182.27211836]
[1753554106609,0.03,185.81,185.8,182.96211836]
[1753554110642,0.03,185.83,185.8,182.96211836]
[1753554110828,0.03,185.85,185.83,16.78468397]
[1753554111134,0.03,185.85,185.84,43.80097993]
[1753554111317,0.03,185.85,185.84,146.55900711]
[1753554111519,0.71,185.85,185.84,38.8]
[1753554112432,0.03,185.85,185.84,38.8]
[1753554112612,0.71,185.85,185.83,5.38122663]
[1753554112810,0.71,185.85,185.84,38.8]
[1753554115436,0.71,185.85,185.82,5.38144488]
[1753554115616,5.00097993,185.83,185.8,5.38185296]
[1753554115816,5.00097993,185.83,185.81,38.78]
[1753554116022,0.72,185.82,185.81,38.78]
[1753554116539,0.72,185.84,185.81,44.16184166]
[1753554118546,5.72097993,185.84,185.81,38.78]
[1753554118734,5.00097993,185.84,185.81,38.78]
[1753554119042,5.72097993,185.83,185.82,38.78]
[1753554120319,0.72,185.83,185.82,38.78]
[1753554123724,0.72,185.83,185.8,5.3819741]
[1753554123928,0.72,185.82,185.81,38.78]
[1753554126133,5.72097993,185.82,185.79,90.06]
[1753554126341,0.72,185.82,185.8,38.78]
[1753554126636,0.72,185.81,185.8,38.78]
[1753554128127,5.72097993,185.81,185.8,38.78]
[1753554128750,0.72,185.81,185.8,38.78]
[1753554129450,5.75097993,185.83,185.8,38.78]
[1753554129653,0.72,185.82,185.8,38.78]
[1753554129947,0.72,185.81,185.8,38.78]
[1753554132152,5.00097993,185.82,185.8,38.78]
[1753554132357,5.72097993,185.82,185.8,38.78]
[1753554132559,0.72,185.81,185.8,38.78]
[1753554134172,5.75097993,185.83,185.8,38.78]
[1753554134657,5.75097993,185.83,185.8,44.16213095]
[1753554135447,5.03097993,185.83,185.8,38.78]
[1753554135649,0.72,185.82,185.8,38.78]
[1753554136556,5.03097993,185.83,185.8,44.16203207]
[1753554136758,5.75097993,185.83,185.8,44.16203207]
[1753554137678,0.03,185.83,185.8,44.81203207]
[1753554138048,0.03,185.83,185.81,5.65097993]
[1753554138257,0.03,185.83,185.82,38.74]
[1753554138440,0.03,185.83,185.82,39.39]
[1753554138765,0.03,185.83,185.82,49.77253196]
[1753554141341,0.03,185.83,185.82,166.0568551]
[1753554142765,0.03,185.85,185.84,26.0]
[1753554142970,0.03,185.85,185.84,70.00530307]
[1753554143266,0.03,185.85,185.84,76.03627594]
[1753554143637,0.03,185.85,185.84,92.82095991]
[1753554144147,1e-08,185.85,185.84,92.82095991]
[1753554144348,1e-08,185.85,185.84,93.35905719]
[1753554145380,1e-08,185.85,185.84,92.82095991]
[1753554149949,1e-08,185.85,185.84,93.35905719]
[1753554154071,1e-08,185.85,185.84,183.35905719]
[1753554154261,1e-08,185.85,185.84,182.82095991]
[1753554159964,0.03,185.87,185.86,22.44940095]
[1753554160305,0.03,185.87,185.86,66.11038088]
[1753554162162,1e-08,185.87,185.86,67.32842026]
[1753554162564,1e-08,185.87,185.86,69.97032021]
[1753554164672,1e-08,185.87,185.86,68.75228083]
[1753554164873,1e-08,185.87,185.86,69.97032021]
[1753554165968,0.1,185.89,185.88,48.44882204]
[1753554166181,0.1,185.89,185.88,182.08980195]
[1753554166667,0.82,185.89,185.88,182.08980195]
[1753554167711,0.1,185.89,185.88,92.08980197]
[1753554167890,0.1,185.89,185.88,93.30778346]
[1753554168990,0.1,185.89,185.88,92.62778346]
[1753554169403,0.82,185.89,185.88,92.62778346]
[1753554169603,0.82,185.89,185.88,92.08980197]
[1753554170185,0.82,185.89,185.88,75.02079486]
[1753554173977,0.1,185.89,185.88,75.02079486]
[1753554177104,0.1,185.89,185.88,75.305118]
[1753554177698,0.1,185.89,185.88,165.30511798]
[1753554178084,0.1,185.89,185.88,182.08980195]
[1753554178300,0.1,185.89,185.88,182.77980195]
[1753554178801,0.1,185.89,185.88,182.08980195]
[1753554180477,0.77,185.89,185.88,182.08980195]
[1753554181905,0.1,185.89,185.88,182.08980195]
[1753554190417,0.77,185.89,185.88,182.08980195]
[1753554193024,0.1,185.89,185.88,182.08980195]
[1753554193332,0.1,185.89,185.88,182.77980195]
[1753554195734,0.1,185.89,185.88,182.08980195]
[1753554198618,0.1,185.89,185.88,143.44980195]
[1753554198917,0.77,185.89,185.88,182.00980195]
[1753554200129,0.77,185.89,185.88,115.99999998]
[1753554200325,0.77,185.89,185.87,0.06]
[1753554200519,5.00097993,185.88,185.84,0.06]
[1753554200704,5.00097993,185.86,185.84,0.06]
[1753554201023,5.00097993,185.86,185.85,38.54]
[1753554201206,5.00097993,185.87,185.85,38.54]
[1753554201407,0.67,185.86,185.85,38.54]
[1753554201822,0.67,185.86,185.85,43.54097993]
[1753554202027,0.67,185.86,185.85,43.92068334]
[1753554202539,0.67,185.88,185.85,48.92166327]
[1753554202744,0.67,185.88,185.87,5.00097993]
[1753554203033,0.67,185.88,185.87,43.54097993]
[1753554204336,0.1,185.89,185.87,48.9210843]
[1753554204540,0.1,185.89,185.88,5.28530307]
[1753554204732,0.1,185.89,185.88,95.82328454]
[1753554205915,0.1,185.89,185.88,101.20309947]
[1753554207330,0.1,185.89,185.88,101.91309947]
[1753554210140,0.1,185.89,185.88,101.20309947]
[1753554210643,1e-08,185.89,185.88,118.69778344]
[1753554210814,1e-08,185.89,185.88,144.15980195]
[1753554211433,1e-08,185.89,185.88,143.44980195]
[1753554212774,0.69000001,185.89,185.88,165.18511798]
[1753554214725,0.69000001,185.89,185.87,5.3800321]
[1753554214931,0.69000001,185.89,185.88,38.5]
[1753554216113,1e-08,185.89,185.88,43.50097993]
[1753554216839,1e-08,185.89,185.88,49.165118]
[1753554217049,0.69000001,185.89,185.88,44.16413807]
[1753554217224,0.69000001,185.89,185.88,49.165118]
[1753554217942,1e-08,185.89,185.88,49.165118]
[1753554218640,0.69000001,185.89,185.88,48.88079486]
[1753554219020,0.69000001,185.89,185.88,138.88079484]
[1753554220263,1e-08,185.89,185.88,138.88079484]
[1753554220435,1e-08,185.89,185.88,100.38079484]
[1753554220643,0.69000001,185.89,185.88,138.88079484]
[1753554221134,0.69000001,185.89,185.88,133.87981491]
[1753554221331,0.69000001,185.89,185.88,138.88079484]
[1753554223328,1e-08,185.89,185.88,138.88079484]
[1753554223636,0.69000001,185.89,185.88,138.88079484]
[1753554224147,0.69000001,185.89,185.88,133.87981491]
[1753554224348,0.69000001,185.89,185.88,138.88079484]
[1753554226954,0.69000001,185.89,185.88,133.87981491]
[1753554227135,0.69000001,185.89,185.88,138.88079484]
[1753554227947,1e-08,185.89,185.88,138.88079484]
[1753554228659,1e-08,185.89,185.88,133.87981491]
[1753554228828,1e-08,185.89,185.88,138.88079484]
[1753554230836,1e-08,185.89,185.88,139.16511798]
[1753554231040,1e-08,185.89,185.88,139.87511798]
[1753554231440,1e-08,185.89,185.88,165.87511798]
[1753554231640,1e-08,185.89,185.88,182.65980195]
[1753554233258,1e-08,185.89,185.88,156.65980195]
[1753554238268,1e-08,185.89,185.88,156.71980195]
[1753554239861,0.03,185.93,185.92,116.28432311]
[1753554240171,0.03,185.93,185.92,159.72530304]
[1753554240349,0.03,185.93,185.92,165.81396052]
[1753554240751,0.03,185.93,185.92,182.59864449]
[1753554240956,0.03,185.94,185.92,182.59864449]
[1753554241246,0.03,185.95,185.93,23.31782386]
[1753554241454,0.03,185.95,185.94,69.44097993]
[1753554241653,0.03,185.95,185.94,70.15097993]
[1753554242152,0.03,185.98,185.96,42.78468397]
[1753554242478,0.03,185.98,185.96,182.42523759]
[1753554242789,0.03,185.98,185.96,181.88748754]
[1753554243156,0.69,185.98,185.96,181.88748754]
[1753554243471,0.69,185.97,185.96,181.88748754]
[1753554244765,0.69,185.97,185.96,165.10280357]
[1753554249177,0.03,185.97,185.96,165.10280357]
[1753554249479,0.69,185.97,185.96,165.10280357]
[1753554254483,0.69,185.97,185.96,160.10182364]
[1753554254774,0.69,185.97,185.96,165.10280357]
[1753554258760,0.03,185.97,185.96,165.10280357]
[1753554259161,0.03,185.97,185.96,182.59748754]
[1753554263087,0.03,185.97,185.96,181.88748754]
[1753554263663,0.03,185.97,185.96,182.59748754]
[1753554264394,1e-08,185.97,185.96,182.59748754]
[1753554265484,1e-08,185.97,185.96,181.88748754]
[1753554265663,1e-08,185.97,185.96,182.54748754]
[1753554269373,0.1,186.0,185.99,26.0]
[1753554269581,0.1,186.0,185.99,64.62432314]
[1753554270080,0.81,186.0,185.99,64.62432314]
[1753554271392,0.81,186.0,185.99,69.71663315]
[1753554272072,0.81,186.0,185.99,31.37663315]
[1753554272274,0.81,186.0,185.99,69.71663315]
[1753554275371,0.81,186.0,185.99,159.68663311]
[1753554276501,0.81,186.0,185.99,164.68761304]
[1753554277190,0.1,186.0,185.99,164.68761304]
[1753554278996,0.81,186.0,185.99,164.68761304]
[1753554280000,0.81,186.0,185.99,159.66663311]
[1753554280776,3.99128167,186.0,185.95,90.02999996]
[1753554280984,0.81,186.0,185.96,38.3]
[1753554281286,0.71,185.99,185.98,0.06]
[1753554281595,0.71,185.99,185.98,38.36]
[1753554284103,0.71,185.99,185.98,43.73692224]
[1753554284488,0.1,186.0,185.98,43.73692224]
[1753554284803,0.1,186.0,185.99,4.97122819]
[1753554285607,0.1,186.0,185.99,10.34786134]
[1753554289002,0.1,186.0,185.99,100.3178613]
[1753554290504,0.81,186.0,185.99,100.3178613]
[1753554290909,0.81,186.0,185.99,95.34663311]
[1753554293111,5.78122819,186.0,185.98,0.06]
[1753554293308,4.97122819,185.99,185.98,0.06]
[1753554293488,5.68122819,185.99,185.98,38.34]
[1753554296014,0.71,185.99,185.98,38.34]
[1753554298816,0.1,186.0,185.98,38.34]
[1753554299018,0.8,186.0,185.98,38.34]
[1753554299395,0.7,185.99,185.98,38.34]
[1753554302908,5.67122819,185.99,185.98,38.34]
[1753554304117,0.7,185.99,185.98,38.34]
[1753554306924,0.1,186.0,185.98,38.34]
[1753554307122,0.8,186.0,185.98,38.34]
[1753554307499,0.1,186.0,185.98,44.37687659]
[1753554308618,0.1,186.0,185.98,49.34810478]
[1753554310723,0.1,186.0,185.98,139.31810474]
[1753554311523,0.1,186.0,185.98,134.34687655]
[1753554311728,0.1,186.0,185.98,133.68687655]
[1753554313820,0.1,186.0,185.98,134.34687655]
[1753554314529,0.7,185.99,185.98,128.30999996]
[1753554316830,0.7,185.99,185.98,38.34]
[1753554321934,5.67122819,185.99,185.98,38.34]
[1753554322517,0.7,185.99,185.98,38.34]
[1753554323123,0.7,185.99,185.98,0.06]
[1753554323438,0.7,185.99,185.98,38.26]
[1753554324943,0.73,185.99,185.98,38.26]
[1753554325315,0.03,185.99,185.98,38.26]
[1753554326846,0.03,185.99,185.98,49.27815043]
[1753554327921,0.75,185.99,185.98,38.26]
[1753554328146,5.72122819,185.99,185.98,0.06]
[1753554328449,5.72122819,185.99,185.98,38.24]
[1753554333451,0.75,185.99,185.98,38.24]
[1753554334158,6.25871811,185.99,185.98,38.24]
[1753554334834,11.63535126,185.99,185.98,0.06]
[1753554335033,0.03,185.99,185.98,0.06]
[1753554335250,0.03,185.99,185.98,38.22]
[1753554336251,5.72122819,185.99,185.98,38.22]
[1753554336665,5.72122819,185.99,185.98,0.06]
[1753554337042,5.00122819,185.99,185.98,0.06]
[1753554337371,5.72122819,185.99,185.98,0.06]
[1753554337735,11.09786134,185.99,185.98,0.06]
[1753554338048,12.68116134,185.99,185.98,0.06]
[1753554357668,11.09786134,185.99,185.98,0.06]
[1753554360572,10.37786134,185.99,185.98,0.06]
[1753554362158,11.06786134,185.99,185.98,0.06]
[1753554363849,5.00122819,185.99,185.98,0.06]
[1753554364049,16.78468397,185.98,185.95,0.06]
[1753554364259,4.97122819,185.96,185.95,0.06]
[1753554364675,5.66122819,185.96,185.95,0.06]
[1753554365176,11.03872872,185.96,185.95,0.06]
[1753554367985,15.36538786,185.96,185.95,0.06]
[1753554368149,15.90287778,185.96,185.95,0.06]
[1753554368652,58.68756175,185.96,185.95,0.06]
[1753554369273,16.78468397,185.95,185.94,0.06]
[1753554369474,59.85591216,185.95,185.94,0.06]
[1753554369673,60.54591216,185.95,185.94,0.06]
[1753554369878,65.92370188,185.95,185.94,0.06]
[1753554370356,48.44901791,185.95,185.94,0.06]
[1753554370954,49.13901791,185.95,185.94,0.06]
[1753554371155,10.34901791,185.95,185.94,0.06]
[1753554372989,11.03901791,185.95,185.94,0.06]
[1753554375046,10.34901791,185.95,185.94,0.06]
[1753554375247,26.53748992,185.96,185.94,0.78]
[1753554375473,10.8857113,185.98,185.94,0.78]
[1753554376581,4.97122819,185.95,185.94,0.06]
[1753554377572,5.66122819,185.95,185.94,0.06]
[1753554378668,11.03901791,185.95,185.94,0.06]
[1753554381381,10.34901791,185.95,185.94,0.06]
[1753554381586,4.97122819,185.95,185.94,0.06]
[1753554384787,4.97122819,185.95,185.94,0.75]
[1753554385093,5.50871811,185.96,185.94,0.75]
[1753554385288,0.53748992,185.96,185.95,0.69]
[1753554385675,0.53748992,185.97,185.95,0.69]
[1753554386064,5.50871811,185.97,185.95,0.69]
[1753554387005,0.53748992,185.97,185.94,0.06]
[1753554387290,4.97122819,185.98,185.96,0.69]
[1753554387470,5.53871811,185.99,185.96,0.69]
[1753554387672,0.56748992,185.99,185.97,0.69]
[1753554387903,0.03,185.99,185.98,0.69]
[1753554393395,0.03,185.99,185.98,6.06692224]
[1753554394182,0.03,185.99,185.98,49.09815043]
[1753554394608,0.03,185.99,185.98,139.06815039]
[1753554394779,0.03,185.99,185.98,139.35247353]
[1753554395601,0.03,185.99,185.98,156.1371575]
[1753554405001,0.03,185.99,185.98,151.12592931]
[1753554405182,0.03,185.99,185.98,156.0971575]
[1753554409487,0.1,186.0,185.99,16.78468397]
[1753554409724,0.1,186.0,185.99,22.98357547]
[1753554410991,0.1,186.0,185.99,28.36020862]
[1753554413003,0.1,186.0,185.99,27.41686845]
[1753554414206,0.1,186.0,185.99,117.38686841]
[1753554415119,0.1,186.0,185.99,118.05686841]
[1753554415321,1e-08,186.0,185.99,123.0280966]
[1753554416132,0.03,186.03,186.02,42.78468397]
[1753554416306,0.03,186.03,186.02,175.72591212]
[1753554416624,0.03,186.04,186.03,17.06900711]
[1753554416813,0.03,186.04,186.03,22.7102353]
[1753554417212,0.03,186.04,186.03,28.08571237]
[1753554417616,0.03,186.04,186.03,27.41571237]
[1753554418110,0.03,186.04,186.03,28.08571237]
[1753554419946,1e-08,186.04,186.03,28.62326007]
[1753554420141,1e-08,186.04,186.03,121.28395308]
[1753554420344,1e-08,186.04,186.03,120.74640538]
[1753554420541,1e-08,186.05,186.03,120.74640538]
[1753554420728,1e-08,186.05,186.04,60.94343097]
[1753554421126,1e-08,186.05,186.04,151.19775407]
[1753554421339,0.03,186.07,186.06,42.78468397]
[1753554421540,1e-08,186.07,186.06,175.99023526]
[1753554421836,0.67,186.12,186.11,5.3731664]
[1753554422038,0.67,186.12,186.11,48.32439459]
[1753554423355,0.1,186.15,186.11,138.57871769]
[1753554423566,0.67,186.13,186.11,133.6074895]
[1753554424369,0.1,186.15,186.11,133.6074895]
[1753554424661,0.1,186.15,186.14,5.37230041]
[1753554424830,0.1,186.15,186.14,43.35230041]
[1753554425442,0.77,186.15,186.14,43.35230041]
[1753554426136,0.77,186.15,186.14,37.98]
[1753554427159,5.74122819,186.15,186.11,95.34311157]
[1753554427369,5.74122819,186.15,186.12,37.98]
[1753554427665,0.67,186.14,186.12,37.98]
[1753554429373,0.67,186.14,186.11,5.37303735]
[1753554429545,0.67,186.14,186.12,37.98]
[1753554430349,0.67,186.13,186.12,43.35281093]
[1753554430543,0.77,186.15,186.12,43.35281093]
[1753554430731,0.67,186.14,186.12,48.32403912]
[1753554431650,0.67,186.14,186.12,43.35281093]
[1753554432259,0.67,186.14,186.12,48.32403912]
[1753554434078,0.67,186.13,186.12,5.37281093]
[1753554434271,0.67,186.13,186.11,5.37316102]
[1753554434568,0.67,186.13,186.12,37.96]
[1753554434886,5.64122819,186.13,186.12,37.96]
[1753554435072,5.67122819,186.13,186.12,37.96]
[1753554438055,5.67122819,186.13,186.11,37.96]
[1753554438359,5.64122819,186.12,186.11,37.96]
[1753554438678,5.64122819,186.12,186.08,0.06]
[1753554438968,4.97122819,186.1,186.09,37.96]
[1753554439470,5.64122819,186.1,186.09,37.96]
[1753554440352,0.03,186.13,186.09,37.96]
[1753554440545,0.03,186.13,186.09,43.60122819]
[1753554440766,0.7,186.13,186.1,5.37345513]
[1753554440970,0.7,186.13,186.11,37.96]
[1753554442174,0.7,186.13,186.11,43.33316487]
[1753554443963,0.03,186.13,186.11,43.33316487]